bitfinex-derivatives/quotes_SOLF0:USTF0_20251122
["timestamp","ask_amount","ask_price","bid_price","bid_amount"]
[1763786078990,7.1179,126.54,126.5,3.02]
[1763786080089,0.04990666,126.53,126.51,0.0541158]
[1763786080292,7.16830666,126.53,126.51,0.0541158]
[1763786081190,110.7548,126.5,126.45,3.02]
[1763786081390,110.7548,126.5,126.42,3.02]
[1763786081781,7.1218,126.47,126.42,3.02]
[1763786082193,0.05302254,126.46,126.43,0.05965673]
[1763786082689,0.05302254,126.46,126.43,3.07965673]
[1763786083694,7.17542254,126.46,126.43,3.07965673]
[1763786084695,0.05302254,126.46,126.43,3.07965673]
[1763786085393,0.05302254,126.46,126.43,0.05965673]
[1763786086284,0.05302254,126.46,126.43,3.07965673]
[1763786089396,110.7465,126.51,126.43,3.07965673]
[1763786089700,110.7557,126.5,126.43,3.02]
[1763786090099,110.7722,126.48,126.43,3.02]
[1763786090499,0.05101844,126.47,126.44,3.07287155]
[1763786090800,0.00492319,126.47,126.46,3.02]
[1763786091896,0.00492319,126.47,126.44,3.07547429]
[1763786092094,0.00492319,126.47,126.44,0.05547429]
[1763786093692,7.1224,126.46,126.44,0.05547429]
[1763786094696,0.00492319,126.47,126.44,3.07547429]
[1763786100799,7.12692319,126.47,126.44,3.07547429]
[1763786101198,0.00492319,126.47,126.44,3.07547429]
[1763786102499,110.78882319,126.47,126.44,0.05547429]
[1763786102700,110.7897,126.46,126.44,0.05547429]
[1763786102902,117.9121,126.46,126.44,0.05547429]
[1763786103103,7.1224,126.46,126.44,0.05547429]
[1763786103303,7.1224,126.46,126.44,3.07547429]
[1763786103700,7.1224,126.46,126.44,0.05547429]
[1763786105304,7.1224,126.46,126.38,16.7]
[1763786105305,7.1245,126.42,126.38,3.02]
[1763786106308,7.1245,126.42,126.39,0.05473721]
[1763786106614,0.05397605,126.41,126.39,3.12473721]
[1763786107410,110.7624,126.5,126.39,3.12473721]
[1763786107610,16.7,126.48,126.39,3.07]
[1763786107904,116.64003075,126.5,126.4,3.07]
[1763786108107,7.1203,126.5,126.42,3.07]
[1763786108302,110.7491,126.51,126.42,3.07]
[1763786108501,0.05460733,126.48,126.45,3.12217082]
[1763786109212,110.7346,126.53,126.45,3.12217082]
[1763786109414,116.58703075,126.56,126.46,3.07]
[1763786109604,110.6935,126.57,126.49,3.07]
[1763786110437,0.05250521,126.54,126.52,0.05408452]
[1763786111410,7.17050521,126.54,126.52,0.05408452]
[1763786116320,0.05250521,126.54,126.52,0.05408452]
[1763786116513,0.05250521,126.54,126.52,3.12408452]
[1763786117419,7.17030521,126.54,126.52,0.05408452]
[1763786117718,110.77550521,126.54,126.48,3.07]
[1763786118508,110.77550521,126.54,126.5,0.05527994]
[1763786118713,7.1191,126.52,126.5,0.05527994]
[1763786119816,7.1191,126.52,126.5,3.12527994]
[1763786121019,7.1191,126.52,126.5,0.05527994]
[1763786123823,110.7501,126.51,126.44,3.07]
[1763786124623,7.1211,126.48,126.44,3.07]
[1763786124822,0.05634742,126.47,126.46,3.07]
[1763786126818,7.17804742,126.47,126.45,0.06051055]
[1763786127618,7.1242,126.43,126.4,3.07]
[1763786128025,110.7989,126.45,126.4,3.07]
[1763786128318,110.8075,126.44,126.37,3.07]
[1763786128525,110.8169,126.43,126.37,3.07]
[1763786128822,0.05184368,126.42,126.39,0.05299893]
[1763786129621,7.1251,126.41,126.39,0.05299893]
[1763786130627,0.05184368,126.42,126.39,0.05299893]
[1763786130831,110.87924368,126.42,126.39,0.05299893]
[1763786131128,7.1285,126.35,126.27,7.1327]
[1763786131319,116.77283075,126.34,126.26,3.07]
[1763786131517,110.9042,126.33,126.26,3.07]
[1763786131720,7.1309,126.31,126.22,3.07]
[1763786131921,118.0532,126.31,126.22,3.07]
[1763786132120,0.06085687,126.28,126.25,3.12389597]
[1763786132717,110.9585,126.27,126.19,3.07]
[1763786133028,116.85213075,126.25,126.19,3.07]
[1763786133528,110.9944,126.23,126.15,3.07]
[1763786133922,0.05053231,126.2,126.18,0.04993355]
[1763786134729,0.05053231,126.2,126.18,3.11993355]
[1763786136629,16.7,126.25,126.19,3.33]
[1763786136818,22.57763075,126.28,126.19,3.33]
[1763786137623,22.57763075,126.28,126.18,118.1699]
[1763786137624,0.05567008,126.25,126.22,3.38813411]
[1763786142024,0.05567008,126.25,126.22,0.05813411]
[1763786142533,111.03217008,126.25,126.22,0.05813411]
[1763786142837,110.9828,126.24,126.22,0.05813411]
[1763786143333,118.1174,126.24,126.22,0.05813411]
[1763786143532,116.88023075,126.22,126.13,14.61]
[1763786143733,111.0099,126.21,126.13,14.61]
[1763786144032,111.0292,126.19,126.13,3.33]
[1763786144239,116.90683075,126.19,126.13,3.33]
[1763786144633,0.05340271,126.17,126.15,0.0551075]
[1763786144828,111.10130271,126.17,126.15,0.0551075]
[1763786145133,111.0644,126.15,126.05,3.33]
[1763786145334,7.1404,126.14,126.05,3.33]
[1763786145728,111.0796,126.13,126.05,3.33]
[1763786145924,116.95723075,126.13,126.05,3.33]
[1763786146134,0.05360292,126.1,126.08,0.05320586]
[1763786146834,0.05360292,126.1,126.08,3.38320586]
[1763786148239,0.05360292,126.1,126.08,0.05320586]
[1763786151435,7.19640292,126.1,126.08,0.05320586]
[1763786152126,7.19640292,126.1,126.01,3.33]
[1763786152127,111.1248,126.08,126.01,3.33]
[1763786153136,0.05524315,126.06,126.03,3.38815821]
[1763786154538,7.1457,126.05,126.03,0.05815821]
[1763786154744,111.1607,126.04,125.93,20.07]
[1763786154940,117.04893075,126.03,125.94,3.33]
[1763786155137,7.1475,126.02,125.94,3.33]
[1763786155835,0.05343533,125.99,125.97,0.05311439]
[1763786156039,0.05343533,125.99,125.97,3.38311439]
[1763786156848,5.87763075,126.04,125.97,3.38311439]
[1763786157032,111.1679,126.03,125.97,3.38311439]
[1763786157334,7.1478,126.01,125.97,3.38311439]
[1763786157736,0.05424338,126.0,125.97,3.38311439]
[1763786160439,0.05424338,126.0,125.97,0.05311439]
[1763786160645,0.05424338,126.0,125.93,3.33]
[1763786160646,111.2146,125.98,125.93,3.33]
[1763786160942,111.2214,125.97,125.87,3.33]
[1763786161140,5.87763075,125.99,125.87,3.33]
[1763786161351,5.87763075,126.01,125.91,3.33]
[1763786161548,7.1486,126.0,125.91,3.33]
[1763786161740,111.27474812,125.97,125.95,0.05489769]
[1763786162043,0.05194812,125.97,125.95,0.05489769]
[1763786162546,7.20204812,125.97,125.95,0.05489769]
[1763786162946,0.05194812,125.97,125.95,0.05489769]
[1763786163150,0.05194812,125.97,125.91,3.33]
[1763786163151,111.2332,125.96,125.91,3.33]
[1763786163336,111.2332,125.96,125.85,3.33]
[1763786163541,111.2399,125.95,125.85,3.33]
[1763786163944,7.1518,125.94,125.86,3.33]
[1763786164140,0.0533168,125.91,125.89,0.05722682]
[1763786164344,0.05742365,125.91,125.89,3.38722682]
[1763786166747,111.2221,125.97,125.89,3.38722682]
[1763786166945,111.239,125.95,125.89,3.33]
[1763786167349,7.1512,125.95,125.89,3.33]
[1763786167648,111.2434,125.95,125.89,3.33]
[1763786167850,0.05126808,125.93,125.91,0.05945264]
[1763786168642,7.20366808,125.93,125.91,0.05945264]
[1763786168849,118.46056808,125.93,125.91,0.05945264]
[1763786169251,7.1539,125.9,125.86,3.15]
[1763786169447,111.2569,125.93,125.86,3.15]
[1763786169646,111.2421,125.95,125.86,3.15]
[1763786169851,7.1507,125.96,125.88,3.23]
[1763786170050,111.2314,125.96,125.88,3.23]
[1763786170252,0.05699135,125.93,125.91,0.05042136]
[1763786170650,0.05699135,125.93,125.91,3.28042136]
[1763786171450,0.05699135,125.93,125.91,0.05042136]
[1763786171953,0.05699135,125.93,125.91,3.28042136]
[1763786172153,120.47926558,126.0,125.92,3.23]
[1763786172456,111.2034,125.99,125.92,3.23]
[1763786172656,111.2208,125.97,125.92,3.23]
[1763786173055,7.1512,125.95,125.93,0.0536122]
[1763786173357,0.05106745,125.96,125.93,0.0536122]
[1763786173853,0.05106745,125.96,125.93,3.2836122]
[1763786174252,0.05106745,125.96,125.93,0.0536122]
[1763786174452,7.1511,125.95,125.93,0.0536122]
[1763786174951,0.05106745,125.96,125.93,0.0536122]
[1763786175147,0.05106745,125.96,125.93,3.2836122]
[1763786176355,0.05106745,125.96,125.93,0.0536122]
[1763786177160,7.1512,125.95,125.93,0.0536122]
[1763786177556,0.05106745,125.96,125.93,0.0536122]
[1763786177856,23.9712,125.95,125.93,0.0536122]
[1763786178054,111.2651,125.92,125.82,3.23]
[1763786178254,111.2651,125.92,125.83,3.23]
[1763786178255,7.1549,125.89,125.83,3.23]
[1763786178454,7.1549,125.89,125.79,120.65676558]
[1763786178455,128.1115,125.89,125.8,3.23]
[1763786178647,16.82,125.89,125.8,3.23]
[1763786178850,7.1551,125.88,125.8,3.23]
[1763786179160,0.05184909,125.85,125.83,0.05386601]
[1763786180059,0.05184909,125.85,125.83,3.28386601]
[1763786181252,7.20864909,125.85,125.83,0.05386601]
[1763786181452,0.05184909,125.85,125.83,3.28386601]
[1763786182254,120.55376558,125.92,125.83,3.28386601]
[1763786182560,111.2476,125.94,125.85,3.23]
[1763786182757,7.153,125.92,125.85,3.23]
[1763786182961,111.2651,125.92,125.85,3.23]
[1763786183149,111.2559,125.93,125.85,3.23]
[1763786183357,0.05375859,125.9,125.88,0.05618366]
[1763786183556,0.05375859,125.9,125.88,3.28618366]
[1763786185452,0.05375859,125.9,125.88,0.05618366]
[1763786186153,7.20775859,125.9,125.88,0.05618366]
[1763786186358,0.05375859,125.9,125.88,0.05618366]
[1763786187761,7.20775859,125.9,125.88,0.05618366]
[1763786188459,7.20775859,125.9,125.82,23.9782]
[1763786188460,7.1559,125.87,125.82,3.23]
[1763786189267,7.1563,125.86,125.82,3.23]
[1763786189464,0.05116327,125.85,125.83,3.28340062]
[1763786190263,0.05116327,125.85,125.83,0.05340062]
[1763786191063,7.20796327,125.85,125.83,0.05340062]
[1763786191261,111.38136327,125.85,125.77,3.23]
[1763786191467,128.1317,125.87,125.77,3.23]
[1763786191668,7.157,125.85,125.77,3.23]
[1763786191974,16.82,125.87,125.79,3.23]
[1763786192268,111.2944,125.89,125.8,3.23]
[1763786192464,0.05092614,125.86,125.83,3.28328093]
[1763786192872,0.05092614,125.86,125.83,0.05328093]
[1763786193266,7.1569,125.85,125.83,0.05328093]
[1763786193772,0.05092614,125.86,125.83,0.05328093]
[1763786194365,0.05092614,125.86,125.83,3.28328093]
[1763786195469,0.05092614,125.86,125.83,0.05328093]
[1763786195767,7.1569,125.85,125.83,0.05328093]
[1763786196376,5.84363475,125.84,125.83,0.05328093]
[1763786198568,7.42363475,125.84,125.83,0.05328093]
[1763786198867,111.3468,125.83,125.77,3.21]
[1763786199678,7.20955347,125.81,125.79,0.04104084]
[1763786199977,0.05045347,125.81,125.79,3.27104084]
[1763786200274,7.20975347,125.81,125.79,0.04104084]
[1763786203566,16.84,125.8,125.79,0.04104084]
[1763786204768,0.05045347,125.81,125.79,0.04104084]
[1763786205173,0.05045347,125.81,125.79,3.27104084]
[1763786205975,16.84,125.85,125.79,3.27104084]
[1763786206195,128.1693,125.85,125.79,0.04104084]
[1763786206578,128.1693,125.85,125.79,3.27104084]
[1763786206880,16.84,125.85,125.79,3.27104084]
[1763786207182,0.05978658,125.83,125.79,3.27104084]
[1763786210785,7.21788658,125.83,125.79,3.27104084]
[1763786211687,111.40828658,125.83,125.79,0.04104084]
[1763786212392,7.1591,125.81,125.79,0.04104084]
[1763786214186,0.05978658,125.83,125.79,3.27104084]
[1763786215586,7.1585,125.82,125.79,3.27104084]
[1763786216884,7.159,125.81,125.79,0.04104084]
[1763786217188,0.05978658,125.83,125.79,3.27104084]
[1763786218487,0.05978658,125.83,125.79,0.04104084]
[1763786218795,7.1591,125.81,125.79,0.04104084]
[1763786218993,7.1591,125.81,125.79,3.27104084]
[1763786220079,7.1591,125.81,125.79,0.04104084]
[1763786220286,0.05978658,125.83,125.79,3.27104084]
[1763786223597,7.1584,125.82,125.79,3.27104084]
[1763786224490,0.05978658,125.83,125.79,3.27104084]
[1763786230300,111.40678658,125.83,125.79,3.27104084]
[1763786230492,111.3543,125.82,125.79,0.04104084]
[1763786230799,111.3543,125.82,125.79,3.09104084]
[1763786231096,0.05978658,125.83,125.79,3.09104084]
[1763786231799,7.1591,125.81,125.79,3.09104084]
[1763786232799,7.1591,125.81,125.79,0.04104084]
[1763786233195,7.1591,125.81,125.79,3.09104084]
[1763786236597,7.1612,125.77,125.76,0.20235]
[1763786237101,7.1605,125.79,125.76,3.25235]
[1763786237601,111.43539911,125.79,125.76,3.30280347]
[1763786237803,111.43539911,125.79,125.76,0.25280347]
[1763786238703,7.1607,125.78,125.76,0.25280347]
[1763786243708,7.1607,125.78,125.76,0.05045347]
[1763786245716,111.4259,125.74,125.67,3.05]
[1763786246414,117.34983171,125.75,125.67,3.05]
[1763786246809,111.4331,125.73,125.67,3.05]
[1763786247018,0.05374425,125.71,125.67,3.05]
[1763786247216,0.05374425,125.71,125.7,0.21627]
[1763786247715,7.21854425,125.71,125.7,0.21627]
[1763786249807,7.21854425,125.71,125.7,7e-05]
[1763786250210,7.1665,125.68,125.64,3.05]
[1763786250403,0.05447016,125.67,125.64,3.05]
[1763786251310,134.19023171,125.75,125.65,3.05]
[1763786251814,7.1636,125.73,125.66,3.05]
[1763786252017,111.4247,125.74,125.66,3.05]
[1763786252218,7.1642,125.72,125.69,0.05279838]
[1763786252509,0.05190489,125.71,125.69,0.05279838]
[1763786253024,0.05190489,125.71,125.69,3.10279838]
[1763786255017,111.3841,125.79,125.69,3.10279838]
[1763786255210,5.93233171,125.79,125.7,3.05]
[1763786255920,7.1609,125.78,125.72,3.11]
[1763786256116,0.05437897,125.76,125.74,0.05458888]
[1763786256511,0.05437897,125.76,125.74,3.21458888]
[1763786258023,0.05437897,125.76,125.74,0.05458888]
[1763786258621,7.21627897,125.76,125.74,0.05458888]
[1763786260124,13.14861068,125.76,125.74,0.05458888]
[1763786260719,7.1642,125.72,125.68,3.16]
[1763786261719,0.06108541,125.71,125.69,0.05178617]
[1763786261926,7.22588541,125.71,125.69,0.05178617]
[1763786263430,0.06108541,125.71,125.69,0.05178617]
[1763786264425,0.06108541,125.71,125.69,3.21178617]
[1763786264938,22.75233171,125.76,125.7,3.16]
[1763786265242,7.1631,125.74,125.7,3.16]
[1763786265436,22.75233171,125.76,125.7,3.16]
[1763786265740,134.16063171,125.79,125.7,3.16]
[1763786265941,0.05041124,125.76,125.73,0.05506485]
[1763786266431,0.05041124,125.76,125.73,3.21506485]
[1763786268136,7.21231124,125.76,125.73,3.21506485]
[1763786268442,0.05041124,125.76,125.73,3.21506485]
[1763786269135,7.1625,125.75,125.73,0.05506485]
[1763786269541,7.21241124,125.76,125.73,3.21506485]
[1763786269941,0.05041124,125.76,125.73,0.05506485]
[1763786271535,7.1625,125.75,125.73,0.05506485]
[1763786271744,0.05041124,125.76,125.73,3.21506485]
[1763786274142,2.13802311,125.78,125.73,3.21506485]
[1763786274344,2.13802311,125.8,125.73,3.21506485]
[1763786274529,2.13802311,125.8,125.73,3.16]
[1763786274734,16.82,125.84,125.76,3.16]
[1763786274735,2.13802311,125.83,125.76,3.16]
[1763786274936,2.13802311,125.83,125.77,3.16]
[1763786275343,0.05074124,125.81,125.8,3.16]
[1763786277244,0.05074124,125.81,125.79,0.05832477]
[1763786277648,0.05074124,125.81,125.79,3.21832477]
[1763786279650,7.20994124,125.81,125.79,0.05832477]
[1763786280845,7.20994124,125.81,125.79,3.21832477]
[1763786281547,7.20994124,125.81,125.79,0.05832477]
[1763786281737,5.93425747,125.8,125.72,3.16]
[1763786281939,134.10215747,125.83,125.72,3.16]
[1763786282441,7.1599,125.8,125.74,3.16]
[1763786282844,0.05813238,125.78,125.77,3.16]
[1763786283663,0.05813238,125.78,125.76,0.05078681]
[1763786284253,7.21903238,125.78,125.76,0.05078681]
[1763786284451,0.05813238,125.78,125.76,0.05078681]
[1763786285249,7.21883238,125.78,125.76,0.05078681]
[1763786285958,0.05813238,125.78,125.76,3.17078681]
[1763786286250,111.3325,125.85,125.77,3.12]
[1763786286251,5.93425747,125.85,125.77,3.12]
[1763786286755,5.93425747,125.85,125.78,3.12]
[1763786286954,22.77425747,125.88,125.78,3.12]
[1763786287153,0.05096051,125.84,125.82,3.17792234]
[1763786287351,0.05096051,125.84,125.82,0.05792234]
[1763786287651,7.20836051,125.84,125.82,0.05792234]
[1763786289346,7.1593,125.81,125.76,3.12]
[1763786290254,111.3367,125.84,125.77,3.17822023]
[1763786290255,7.22028993,125.8,125.77,3.17822023]
[1763786292354,7.1602,125.79,125.77,0.05822023]
[1763786295853,7.22018993,125.8,125.77,3.17822023]
[1763786296455,0.06058993,125.8,125.77,3.17822023]
[1763786297451,7.1576,125.84,125.77,3.17822023]
[1763786298651,0.05995004,125.82,125.78,3.12]
[1763786298856,0.05995004,125.82,125.8,3.12]
[1763786299956,7.21845004,125.82,125.79,0.05655305]
[1763786300172,7.21845004,125.82,125.79,3.17655305]
[1763786302157,7.1592,125.81,125.79,0.05655305]
[1763786302861,7.1592,125.81,125.79,3.17655305]
[1763786303346,0.05995004,125.82,125.79,3.17655305]
[1763786303752,7.159,125.81,125.79,0.05655305]
[1763786307764,7.1614,125.77,125.73,3.12]
[1763786308558,7.1619,125.76,125.73,3.12]
[1763786308763,7.21207717,125.76,125.73,3.17714318]
[1763786309564,0.05017717,125.76,125.73,3.17714318]
[1763786310065,0.05017717,125.76,125.74,3.12]
[1763786310766,0.05017717,125.76,125.73,3.17714318]
[1763786312165,111.346,125.83,125.73,3.17714318]
[1763786312463,117.26681036,125.82,125.73,3.12]
[1763786312765,7.1608,125.78,125.73,3.12]
[1763786313063,0.05503386,125.77,125.73,3.12]
[1763786313272,0.05503386,125.77,125.74,3.1775566]
[1763786313972,7.1594,125.81,125.76,3.12]
[1763786314665,16.58951564,125.86,125.77,3.12]
[1763786314666,9.30317771,125.86,125.77,3.12]
[1763786314967,111.3068,125.88,125.8,3.17815122]
[1763786314968,0.0583637,125.83,125.8,3.17815122]
[1763786315263,0.0583637,125.83,125.8,3.17986838]
[1763786320866,0.0583637,125.83,125.8,0.05986838]
[1763786321067,0.0583637,125.83,125.8,3.12986838]
[1763786321372,0.0583637,125.83,125.8,0.05986838]
[1763786321572,111.4054637,125.83,125.8,0.05986838]
[1763786321772,111.4054637,125.83,125.76,3.07]
[1763786321773,111.3548,125.82,125.76,3.07]
[1763786322270,9.30317771,125.85,125.77,3.07]
[1763786322468,5.89854068,125.84,125.77,3.07]
[1763786322661,111.3293,125.85,125.78,3.07]
[1763786322882,0.05973299,125.83,125.8,0.0604386]
[1763786323562,0.05973299,125.83,125.8,3.1304386]
[1763786325875,0.05973299,125.83,125.8,0.0604386]
[1763786326575,7.1585,125.82,125.8,0.0604386]
[1763786332676,0.05973299,125.83,125.8,3.1304386]
[1763786337687,0.05973299,125.83,125.81,3.07]
[1763786338981,120.57967771,125.91,125.82,10.2283]
[1763786339185,11.6743904,125.9,125.83,3.07]
[1763786339489,111.2951,125.89,125.83,3.07]
[1763786339985,0.0590547,125.87,125.85,0.06106927]
[1763786340184,7.1562,125.86,125.85,0.06106927]
[1763786340785,7.1579,125.83,125.8,3.07]
[1763786341290,111.3298,125.85,125.78,3.07]
[1763786341790,111.3298,125.85,125.8,0.05700518]
[1763786341992,0.05430324,125.83,125.8,3.12700518]
[1763786347094,7.1585,125.82,125.8,3.12700518]
[1763786348409,0.05430324,125.83,125.8,3.12700518]
[1763786349698,7.21210324,125.83,125.8,3.12700518]
[1763786350703,7.1587,125.82,125.8,0.05700518]
[1763786351207,7.1587,125.82,125.8,3.16700518]
[1763786352406,7.1587,125.82,125.8,0.05700518]
[1763786353405,7.161,125.78,125.74,3.11]
[1763786353804,111.3829,125.79,125.74,3.11]
[1763786354099,111.3829,125.79,125.67,135.3786]
[1763786354100,111.3977,125.77,125.71,3.11]
[1763786354509,0.06104443,125.75,125.73,0.05193241]
[1763786355215,7.22354443,125.75,125.73,0.05193241]
[1763786356513,111.4606,125.7,125.62,3.11]
[1763786356710,111.4719,125.69,125.62,3.11]
[1763786357512,7.21889349,125.67,125.64,0.04427375]
[1763786358421,0.05179349,125.67,125.64,3.15427375]
[1763786359216,0.05179349,125.67,125.64,0.04427375]
[1763786359619,0.05179349,125.67,125.64,3.15427375]
[1763786361319,5.93424374,125.76,125.66,3.11]
[1763786361911,111.3915,125.78,125.68,3.11]
[1763786362111,111.3987,125.77,125.68,3.11]
[1763786362312,0.05627251,125.74,125.71,3.1676785]
[1763786364627,23.9804,125.79,125.71,3.1676785]
[1763786364824,7.1604,125.79,125.71,3.11]
[1763786365128,111.399,125.77,125.71,3.11]
[1763786365725,0.05495774,125.75,125.73,0.05159484]
[1763786367726,0.05495774,125.75,125.73,3.16159484]
[1763786368124,111.3695,125.81,125.73,3.16159484]
[1763786368320,5.93424374,125.85,125.75,3.11]
[1763786369224,0.05749639,125.81,125.79,3.16092447]
[1763786372118,7.1558,125.87,125.79,3.16092447]
[1763786372329,7.1558,125.87,125.79,3.11]
[1763786372526,7.1558,125.87,125.8,3.11]
[1763786372830,7.1547,125.89,125.8,3.11]
[1763786373217,0.05194799,125.86,125.84,3.11]
[1763786375334,0.05194799,125.86,125.83,0.05595487]
[1763786376027,0.05194799,125.86,125.83,3.07595487]
[1763786378336,5.93424374,125.91,125.83,3.07595487]
[1763786378640,128.0824,125.93,125.83,3.02]
[1763786378933,5.93424374,125.94,125.85,3.21]
[1763786379136,5.93424374,125.97,125.88,3.21]
[1763786379334,0.06050403,125.94,125.91,0.06058352]
[1763786379634,0.06050403,125.94,125.91,3.27058352]
[1763786379836,0.06050403,125.94,125.91,0.06058352]
[1763786380835,111.2753,125.91,125.84,20.03]
[1763786381034,111.2747,125.91,125.84,20.03]
[1763786381236,7.1547,125.89,125.85,3.21]
[1763786382335,0.05741725,125.88,125.86,3.26498818]
[1763786386441,0.05741725,125.88,125.86,20.08498818]
[1763786386640,0.05741725,125.88,125.87,3.21]
[1763786390639,7.1519,125.94,125.87,3.21]
[1763786391646,0.05775068,125.92,125.9,3.21]
[1763786392939,111.2073,125.99,125.92,3.21]
[1763786393350,7.15,125.97,125.92,3.21]
[1763786393650,5.93424374,126.0,125.92,3.21]
[1763786393949,0.05539514,125.97,125.96,3.21]
[1763786394844,5.93424374,126.03,125.96,3.21]
[1763786395052,117.10484374,126.03,125.96,3.21]
[1763786395847,0.05722992,126.01,125.98,0.05509461]
[1763786397055,7.1484,126.0,125.98,0.05509461]
[1763786397548,13.08264374,126.0,125.98,0.05509461]
[1763786398462,0.05722992,126.01,125.98,0.05509461]
[1763786399343,7.20492992,126.01,125.98,0.05509461]
[1763786400745,0.05722992,126.01,125.98,3.26509461]
[1763786401654,5.93424374,126.0,125.98,0.05509461]
[1763786401849,117.17907366,126.01,125.98,0.05509461]
[1763786402449,7.1484,126.0,125.98,0.05509461]
[1763786405350,1.58,126.0,125.92,3.21]
[1763786405656,111.2297,125.96,125.89,3.05]
[1763786406158,7.1508,125.96,125.9,3.05]
[1763786406461,0.05089331,125.94,125.93,3.05]
[1763786408254,7.1497,125.98,125.93,3.05]
[1763786408454,5.93424374,126.0,125.93,3.05]
[1763786408657,5.93424374,126.03,125.93,3.05]
[1763786408960,7.1488,125.99,125.93,3.05]
[1763786409359,0.05548188,125.97,125.96,3.05]
[1763786410068,0.05548188,125.97,125.95,0.05605203]
[1763786410762,7.1504,125.96,125.95,0.05605203]
[1763786411459,0.05548188,125.97,125.95,3.10605203]
[1763786412056,0.05548188,125.97,125.95,0.05605203]
[1763786412261,0.05548188,125.97,125.95,3.10605203]
[1763786413064,7.20548188,125.97,125.95,0.05605203]
[1763786416369,5.8662448,125.96,125.95,0.05605203]
[1763786416965,0.05548188,125.97,125.95,0.05605203]
[1763786417160,111.2423,125.95,125.88,3.05]
[1763786417367,7.1528,125.92,125.88,3.05]
[1763786418365,16.8,125.97,125.9,3.05]
[1763786418572,5.87297758,125.96,125.9,3.05]
[1763786418773,111.2142,125.98,125.9,3.05]
[1763786418774,7.1502,125.97,125.9,3.05]
[1763786419468,0.0580402,125.95,125.92,3.1052489]
[1763786421959,0.0580402,125.95,125.92,0.0552489]
[1763786422170,0.0580402,125.95,125.92,3.1052489]
[1763786424475,0.0580402,125.95,125.92,0.0552489]
[1763786425189,7.1516,125.94,125.92,0.0552489]
[1763786425566,111.2653,125.92,125.86,3.05]
[1763786426067,111.2591,125.93,125.86,3.05]
[1763786426577,0.05701816,125.91,125.88,0.05860725]
[1763786427367,0.05701816,125.91,125.88,3.10860725]
[1763786427967,7.1541,125.9,125.88,0.05860725]
[1763786429291,0.05701816,125.91,125.88,3.10860725]
[1763786432668,0.05701816,125.91,125.9,3.05]
[1763786433469,7.1507,125.96,125.91,3.05]
[1763786434566,0.06089017,125.95,125.93,3.05]
[1763786435372,7.21199017,125.95,125.92,3.36021224]
[1763786437373,7.1517,125.94,125.92,0.06021224]
[1763786440576,7.1546,125.89,125.87,3.12]
[1763786441169,7.1546,125.89,125.84,3.12]
[1763786441577,0.05789461,125.88,125.86,3.12]
[1763786444577,0.05789461,125.88,125.85,3.17715799]
[1763786445570,7.21309461,125.88,125.85,3.17715799]
[1763786446680,0.05789461,125.88,125.85,3.17715799]
[1763786449184,0.05789461,125.88,125.86,3.12]
[1763786449386,128.0333,125.96,125.86,3.12]
[1763786450376,128.0333,125.96,125.9,0.05290199]
[1763786450587,0.05928408,125.92,125.9,3.17290199]
[1763786455289,7.21208408,125.92,125.9,3.17290199]
[1763786455494,7.21208408,125.92,125.9,0.05290199]
[1763786456989,0.05928408,125.92,125.9,3.17290199]
[1763786457484,7.1502,125.97,125.9,3.17290199]
[1763786458090,111.2016,126.0,125.9,3.17290199]
[1763786458286,111.2016,126.0,125.9,3.12]
[1763786458485,0.05816781,125.96,125.94,3.17396016]
[1763786458687,9.28427679,126.03,125.94,3.17396016]
[1763786458888,111.1571,126.05,125.94,3.12]
[1763786459092,11.66772828,126.04,125.94,3.12]
[1763786459286,120.43187679,126.06,125.94,3.12]
[1763786459487,7.1467,126.03,125.97,3.12]
[1763786459689,0.06091735,126.01,125.99,0.05426584]
[1763786460180,7.20871735,126.01,125.99,0.05426584]
[1763786461295,7.20871735,126.01,125.89,3.12]
[1763786461296,111.2122,125.98,125.89,3.12]
[1763786461495,111.1946,126.0,125.89,3.12]
[1763786461693,3.32836528,125.99,125.9,7.1537]
[1763786461892,7.1495,125.98,125.91,3.12]
[1763786462089,114.53416528,125.99,125.91,3.12]